[Event "Titled Tuesday Blitz May 11 2021"]
[White "Nitin, S."]
[Black "Dobrov, Vladimir"]
[WhiteFideId "5018277"]
[BlackFideId "4136594"]
[WhiteElo "2431"]
[BlackElo "2614"]
[Result "0-1"]
[Round "10"]
[TimeControl "180+1"]
[Date "2021.05.11"]
[WhiteClock "0:00:08"]
[BlackClock "0:00:23"]

1. e4 {[%clk 0:03:00]}  c5 {[%clk 0:02:54]} 2. Nf3 {[%clk 0:03:00]}  d6 {[%clk 0:02:55]} 3. d4 {[%clk 0:03:00]}  cxd4 {[%clk 0:02:56]} 4. Nxd4 {[%clk 0:03:01]}  Nf6 {[%clk 0:02:56]} 5. Nc3 {[%clk 0:03:01]}  a6 {[%clk 0:02:57]} 6. Be3 {[%clk 0:03:01]}  e6 {[%clk 0:02:56]} 7. g4 {[%clk 0:03:00]}  h6 {[%clk 0:02:56]} 8. h4 {[%clk 0:03:00]}  b5 {[%clk 0:02:51]} 9. Bg2 {[%clk 0:02:51]}  b4 {[%clk 0:02:37]} 10. Nce2 {[%clk 0:02:48]}  Bb7 {[%clk 0:02:37]} 11. Ng3 {[%clk 0:02:44]}  e5 {[%clk 0:02:16]} 12. g5 {[%clk 0:02:34]}  exd4 {[%clk 0:02:09]} 13. Qxd4 {[%clk 0:02:32]}  Nc6 {[%clk 0:02:06]} 14. Qd2 {[%clk 0:02:30]}  Ng4 {[%clk 0:02:04]} 15. O-O-O {[%clk 0:02:28]}  Nxe3 {[%clk 0:02:04]} 16. Qxe3 {[%clk 0:02:28]}  Qa5 {[%clk 0:01:59]} 17. Kb1 {[%clk 0:02:23]}  hxg5 {[%clk 0:01:54]} 18. Nf5 {[%clk 0:02:20]}  O-O-O {[%clk 0:01:51]} 19. hxg5 {[%clk 0:02:10]}  Rxh1 {[%clk 0:01:50]} 20. Bxh1 {[%clk 0:02:11]}  Kb8 {[%clk 0:01:35]} 21. Qb3 {[%clk 0:02:09]}  g6 {[%clk 0:01:27]} 22. Ne3 {[%clk 0:02:08]}  Qxg5 {[%clk 0:01:22]} 23. Qxf7 {[%clk 0:02:07]}  Ne5 {[%clk 0:01:10]} 24. Qb3 {[%clk 0:02:06]}  a5 {[%clk 0:01:00]} 25. a3 {[%clk 0:02:06]}  Qf6 {[%clk 0:00:39]} 26. axb4 {[%clk 0:01:59]}  axb4 {[%clk 0:00:40]} 27. Qxb4 {[%clk 0:01:48]}  Qxf2 {[%clk 0:00:40]} 28. Nd5 {[%clk 0:01:39]}  Rc8 {[%clk 0:00:39]} 29. Nc3 {[%clk 0:01:32]}  Qc5 {[%clk 0:00:37]} 30. Qb3 {[%clk 0:01:30]}  Bg7 {[%clk 0:00:37]} 31. Nb5 {[%clk 0:01:06]}  Nc4 {[%clk 0:00:30]} 32. c3 {[%clk 0:00:59]}  Qb6 {[%clk 0:00:24]} 33. Bg2 {[%clk 0:00:41]}  Rc5 {[%clk 0:00:22]} 34. Nd4 {[%clk 0:00:39]}  Qxb3 {[%clk 0:00:22]} 35. Nxb3 {[%clk 0:00:40]}  Re5 {[%clk 0:00:21]} 36. Rg1 {[%clk 0:00:34]}  Ne3 {[%clk 0:00:20]} 37. Bf3 {[%clk 0:00:33]}  g5 {[%clk 0:00:20]} 38. Nd4 {[%clk 0:00:32]}  g4 {[%clk 0:00:19]} 39. Bxg4 {[%clk 0:00:32]}  Bxe4+ {[%clk 0:00:20]} 40. Kc1 {[%clk 0:00:32]}  Bh6 {[%clk 0:00:20]} 41. Bd7 {[%clk 0:00:24]}  Nf5+ {[%clk 0:00:20]} 42. Kd1 {[%clk 0:00:22]}  Nxd4 {[%clk 0:00:20]} 43. cxd4 {[%clk 0:00:22]}  Rd5 {[%clk 0:00:20]} 44. Rg8+ {[%clk 0:00:18]}  Kc7 {[%clk 0:00:20]} 45. Be6 {[%clk 0:00:16]}  Rxd4+ {[%clk 0:00:20]} 46. Ke2 {[%clk 0:00:17]}  Bf4 {[%clk 0:00:20]} 47. b3 {[%clk 0:00:14]}  Rd2+ {[%clk 0:00:20]} 48. Ke1 {[%clk 0:00:13]}  Rc2 {[%clk 0:00:20]} 49. Rc8+ {[%clk 0:00:10]}  Kb6 {[%clk 0:00:19]} 50. Rxc2 {[%clk 0:00:11]}  Bxc2 {[%clk 0:00:20]} 51. Ke2 {[%clk 0:00:11]}  Be4 {[%clk 0:00:20]} 52. Kd1 {[%clk 0:00:11]}  Kc5 {[%clk 0:00:21]} 53. Ke2 {[%clk 0:00:11]}  Kb4 {[%clk 0:00:21]} 54. Kd1 {[%clk 0:00:12]}  d5 {[%clk 0:00:21]} 55. Ke2 {[%clk 0:00:05]}  Kxb3 {[%clk 0:00:21]} 56. Kd1 {[%clk 0:00:06]}  Kc4 {[%clk 0:00:21]} 57. Ke2 {[%clk 0:00:07]}  Kc3 {[%clk 0:00:21]} 58. Kd1 {[%clk 0:00:07]}  d4 {[%clk 0:00:22]} 59. Ke2 {[%clk 0:00:08]}  d3+ {[%clk 0:00:22]} 60. Kd1 {[%clk 0:00:08]}  Bf3+ {[%clk 0:00:23]} 0-1


[Site "https://www.chess.com"]

[Event "Titled Tuesday Blitz May 11 2021"]
[White "Shipov, Sergei"]
[Black "Lintchevski, Daniil"]
[WhiteFideId "4113624"]
[BlackFideId "4171055"]
[WhiteElo "2772"]
[BlackElo "2505"]
[Result "0-1"]
[Round "10"]
[TimeControl "180+1"]
[Date "2021.05.11"]
[WhiteClock "0:00:14"]
[BlackClock "0:00:15"]

1. d4 {[%clk 0:03:00]}  d5 {[%clk 0:03:00]} 2. c4 {[%clk 0:03:01]}  c6 {[%clk 0:03:01]} 3. Nc3 {[%clk 0:03:01]}  Nf6 {[%clk 0:03:01]} 4. Nf3 {[%clk 0:03:01]}  a6 {[%clk 0:03:02]} 5. h3 {[%clk 0:03:00]}  e6 {[%clk 0:03:01]} 6. e3 {[%clk 0:02:59]}  c5 {[%clk 0:03:02]} 7. dxc5 {[%clk 0:02:56]}  Bxc5 {[%clk 0:03:01]} 8. cxd5 {[%clk 0:02:57]}  exd5 {[%clk 0:03:02]} 9. g4 {[%clk 0:02:57]}  h6 {[%clk 0:02:58]} 10. Bg2 {[%clk 0:02:56]}  Nc6 {[%clk 0:02:58]} 11. O-O {[%clk 0:02:56]}  O-O {[%clk 0:02:58]} 12. Ne2 {[%clk 0:02:53]}  Ne4 {[%clk 0:02:57]} 13. b3 {[%clk 0:02:50]}  f5 {[%clk 0:02:52]} 14. Bb2 {[%clk 0:02:28]}  fxg4 {[%clk 0:02:51]} 15. hxg4 {[%clk 0:02:27]}  Bxg4 {[%clk 0:02:50]} 16. Nh2 {[%clk 0:01:13]}  Bh5 {[%clk 0:02:42]} 17. Rc1 {[%clk 0:01:11]}  Bb6 {[%clk 0:02:38]} 18. a3 {[%clk 0:01:04]}  Rc8 {[%clk 0:02:16]} 19. Qd3 {[%clk 0:01:04]}  Qg5 {[%clk 0:02:03]} 20. Nf4 {[%clk 0:01:01]}  Bf7 {[%clk 0:01:57]} 21. Nf3 {[%clk 0:01:00]}  Qg4 {[%clk 0:01:49]} 22. Nh2 {[%clk 0:00:58]}  Qf5 {[%clk 0:01:47]} 23. Rcd1 {[%clk 0:00:52]}  Rcd8 {[%clk 0:01:47]} 24. Kh1 {[%clk 0:00:51]}  Ne5 {[%clk 0:01:40]} 25. Qe2 {[%clk 0:00:51]}  g5 {[%clk 0:01:34]} 26. Bh3 {[%clk 0:00:48]}  Qf6 {[%clk 0:01:25]} 27. Ng4 {[%clk 0:00:48]}  Nxg4 {[%clk 0:01:18]} 28. Bxf6 {[%clk 0:00:47]}  Ngxf6 {[%clk 0:01:16]} 29. Ne6 {[%clk 0:00:48]}  Bxe6 {[%clk 0:01:11]} 30. Bxe6+ {[%clk 0:00:48]}  Kg7 {[%clk 0:01:12]} 31. Kg2 {[%clk 0:00:48]}  Rd6 {[%clk 0:01:02]} 32. Bf5 {[%clk 0:00:48]}  Nc3 {[%clk 0:00:59]} 33. Qd3 {[%clk 0:00:48]}  Nxd1 {[%clk 0:00:59]} 34. Rxd1 {[%clk 0:00:48]}  d4 {[%clk 0:00:50]} 35. exd4 {[%clk 0:00:48]}  Nh5 {[%clk 0:00:50]} 36. Qe4 {[%clk 0:00:41]}  Rdf6 {[%clk 0:00:50]} 37. Bg4 {[%clk 0:00:31]}  Rxf2+ {[%clk 0:00:49]} 38. Kg1 {[%clk 0:00:31]}  R2f4 {[%clk 0:00:43]} 39. Qe5+ {[%clk 0:00:29]}  Nf6 {[%clk 0:00:43]} 40. Bh3 {[%clk 0:00:24]}  Rf7 {[%clk 0:00:37]} 41. Kh1 {[%clk 0:00:22]}  Rh4 {[%clk 0:00:34]} 42. Qg3 {[%clk 0:00:18]}  Bc7 {[%clk 0:00:31]} 43. Qc3 {[%clk 0:00:16]}  g4 {[%clk 0:00:30]} 44. Rg1 {[%clk 0:00:16]}  Kh8 {[%clk 0:00:26]} 45. Kg2 {[%clk 0:00:13]}  Rxh3 {[%clk 0:00:25]} 46. Qc4 {[%clk 0:00:14]}  Rg3+ {[%clk 0:00:24]} 47. Kh1 {[%clk 0:00:14]}  Rh3+ {[%clk 0:00:24]} 48. Kg2 {[%clk 0:00:14]}  Kg7 {[%clk 0:00:24]} 49. Rf1 {[%clk 0:00:14]}  Rg3+ {[%clk 0:00:23]} 50. Kh1 {[%clk 0:00:14]}  Rh3+ {[%clk 0:00:23]} 51. Kg1 {[%clk 0:00:14]}  h5 {[%clk 0:00:18]} 52. Qc5 {[%clk 0:00:14]}  Rg3+ {[%clk 0:00:17]} 53. Kh1 {[%clk 0:00:14]}  Kg6 {[%clk 0:00:18]} 54. Qf5+ {[%clk 0:00:13]}  Kh6 {[%clk 0:00:16]} 55. Qe6 {[%clk 0:00:13]}  Rh3+ {[%clk 0:00:15]} 56. Kg1 {[%clk 0:00:13]}  Rg3+ {[%clk 0:00:16]} 57. Kh1 {[%clk 0:00:14]}  Kg7 {[%clk 0:00:16]} 58. Qf5 {[%clk 0:00:13]}  Rh3+ {[%clk 0:00:16]} 59. Kg1 {[%clk 0:00:14]}  Rg3+ {[%clk 0:00:16]} 60. Kh1 {[%clk 0:00:14]}  Rf3 {[%clk 0:00:16]} 61. Rxf3 {[%clk 0:00:14]}  gxf3 {[%clk 0:00:17]} 62. Qxf3 {[%clk 0:00:14]}  Ng4 {[%clk 0:00:18]} 63. Qd5 {[%clk 0:00:14]}  Rf1+ {[%clk 0:00:14]} 64. Kg2 {[%clk 0:00:14]}  Ne3+ {[%clk 0:00:14]} 65. Kh3 {[%clk 0:00:14]}  Nxd5 {[%clk 0:00:15]} 0-1


[Site "https://www.chess.com"]

[Event "Titled Tuesday Blitz May 11 2021"]
[White "Timmermans, Mark"]
[Black "Ozen, Bahadir"]
[WhiteFideId "1026399"]
[BlackFideId "6337058"]
[WhiteElo "2460"]
[BlackElo "2503"]
[Result "1/2-1/2"]
[Round "10"]
[TimeControl "180+1"]
[Date "2021.05.11"]
[WhiteClock "0:00:07"]
[BlackClock "0:00:05"]

1. b4 {[%clk 0:03:00]}  d5 {[%clk 0:03:00]} 2. Bb2 {[%clk 0:02:57]}  Bg4 {[%clk 0:03:00]} 3. Nf3 {[%clk 0:02:56]}  Bxf3 {[%clk 0:02:59]} 4. exf3 {[%clk 0:02:57]}  e6 {[%clk 0:02:59]} 5. b5 {[%clk 0:02:57]}  Nf6 {[%clk 0:02:53]} 6. a4 {[%clk 0:02:57]}  g6 {[%clk 0:02:49]} 7. Be2 {[%clk 0:02:58]}  Bg7 {[%clk 0:02:49]} 8. O-O {[%clk 0:02:58]}  O-O {[%clk 0:02:49]} 9. d4 {[%clk 0:02:58]}  Nbd7 {[%clk 0:02:37]} 10. Nd2 {[%clk 0:02:57]}  c5 {[%clk 0:02:28]} 11. dxc5 {[%clk 0:02:50]}  Nxc5 {[%clk 0:02:29]} 12. Bd4 {[%clk 0:02:29]}  Rc8 {[%clk 0:02:23]} 13. c4 {[%clk 0:02:12]}  Qd6 {[%clk 0:02:11]} 14. cxd5 {[%clk 0:02:10]}  Ng4 {[%clk 0:01:53]} 15. fxg4 {[%clk 0:02:05]}  Bxd4 {[%clk 0:01:53]} 16. Rc1 {[%clk 0:02:04]}  Qxd5 {[%clk 0:01:40]} 17. Bf3 {[%clk 0:02:01]}  Qg5 {[%clk 0:01:30]} 18. a5 {[%clk 0:01:54]}  Rfd8 {[%clk 0:01:30]} 19. Qe2 {[%clk 0:01:50]}  Bg7 {[%clk 0:01:09]} 20. Rc2 {[%clk 0:01:41]}  Bh6 {[%clk 0:00:58]} 21. Rd1 {[%clk 0:01:12]}  b6 {[%clk 0:00:51]} 22. axb6 {[%clk 0:01:11]}  axb6 {[%clk 0:00:52]} 23. g3 {[%clk 0:01:07]}  Qe7 {[%clk 0:00:45]} 24. h4 {[%clk 0:01:00]}  Na4 {[%clk 0:00:36]} 25. Bc6 {[%clk 0:00:57]}  Bg7 {[%clk 0:00:28]} 26. Ne4 {[%clk 0:00:54]}  Rxd1+ {[%clk 0:00:21]} 27. Qxd1 {[%clk 0:00:55]}  Rd8 {[%clk 0:00:22]} 28. Qf3 {[%clk 0:00:55]}  f5 {[%clk 0:00:13]} 29. gxf5 {[%clk 0:00:54]}  gxf5 {[%clk 0:00:14]} 30. Ng5 {[%clk 0:00:55]}  h6 {[%clk 0:00:14]} 31. Nh3 {[%clk 0:00:52]}  Nc5 {[%clk 0:00:15]} 32. Re2 {[%clk 0:00:48]}  Rd1+ {[%clk 0:00:11]} 33. Kg2 {[%clk 0:00:48]}  Qd6 {[%clk 0:00:12]} 34. Nf4 {[%clk 0:00:44]}  Rc1 {[%clk 0:00:12]} 35. Qh5 {[%clk 0:00:20]}  Qd1 {[%clk 0:00:12]} 36. Qe8+ {[%clk 0:00:20]}  Kh7 {[%clk 0:00:12]} 37. Kh2 {[%clk 0:00:21]}  Qg1+ {[%clk 0:00:08]} 38. Kh3 {[%clk 0:00:21]}  e5 {[%clk 0:00:03]} 39. Qg6+ {[%clk 0:00:19]}  Kh8 {[%clk 0:00:04]} 40. Qxf5 {[%clk 0:00:16]}  e4 {[%clk 0:00:03]} 41. Bxe4 {[%clk 0:00:16]}  Nxe4 {[%clk 0:00:03]} 42. Qxe4 {[%clk 0:00:17]}  Qh1+ {[%clk 0:00:04]} 43. Qxh1 {[%clk 0:00:17]}  Rxh1+ {[%clk 0:00:05]} 44. Kg2 {[%clk 0:00:17]}  Rb1 {[%clk 0:00:05]} 45. Re8+ {[%clk 0:00:18]}  Kh7 {[%clk 0:00:06]} 46. Ne6 {[%clk 0:00:18]}  Ba1 {[%clk 0:00:05]} 47. Nc7 {[%clk 0:00:16]}  Bd4 {[%clk 0:00:04]} 48. Re7+ {[%clk 0:00:16]}  Kh8 {[%clk 0:00:04]} 49. Rd7 {[%clk 0:00:16]}  Bc5 {[%clk 0:00:04]} 50. Ne6 {[%clk 0:00:16]}  Rxb5 {[%clk 0:00:03]} 51. g4 {[%clk 0:00:16]}  Rb2 {[%clk 0:00:03]} 52. Nxc5 {[%clk 0:00:15]}  bxc5 {[%clk 0:00:03]} 53. Rc7 {[%clk 0:00:15]}  Rc2 {[%clk 0:00:03]} 54. Kg3 {[%clk 0:00:15]}  c4 {[%clk 0:00:03]} 55. g5 {[%clk 0:00:14]}  hxg5 {[%clk 0:00:02]} 56. hxg5 {[%clk 0:00:15]}  c3 {[%clk 0:00:03]} 57. f4 {[%clk 0:00:15]}  Rc1 {[%clk 0:00:02]} 58. f5 {[%clk 0:00:15]}  c2 {[%clk 0:00:02]} 59. Kg2 {[%clk 0:00:16]}  Kg8 {[%clk 0:00:02]} 60. g6 {[%clk 0:00:16]}  Ra1 {[%clk 0:00:02]} 61. Rxc2 {[%clk 0:00:16]}  Ra4 {[%clk 0:00:02]} 62. Kg3 {[%clk 0:00:15]}  Kg7 {[%clk 0:00:02]} 63. Rc6 {[%clk 0:00:15]}  Rb4 {[%clk 0:00:02]} 64. Re6 {[%clk 0:00:14]}  Ra4 {[%clk 0:00:02]} 65. Kf3 {[%clk 0:00:15]}  Rb4 {[%clk 0:00:03]} 66. Re4 {[%clk 0:00:15]}  Rb1 {[%clk 0:00:03]} 67. Kf4 {[%clk 0:00:15]}  Rf1+ {[%clk 0:00:02]} 68. Kg5 {[%clk 0:00:16]}  Rg1+ {[%clk 0:00:02]} 69. Rg4 {[%clk 0:00:16]}  Rf1 {[%clk 0:00:03]} 70. Rg3 {[%clk 0:00:16]}  Rf2 {[%clk 0:00:03]} 71. Kg4 {[%clk 0:00:17]}  Rf1 {[%clk 0:00:03]} 72. Rf3 {[%clk 0:00:17]}  Rg1+ {[%clk 0:00:03]} 73. Rg3 {[%clk 0:00:17]}  Rf1 {[%clk 0:00:02]} 74. Rh3 {[%clk 0:00:18]}  Rg1+ {[%clk 0:00:03]} 75. Kf4 {[%clk 0:00:18]}  Kf6 {[%clk 0:00:02]} 76. Rh7 {[%clk 0:00:16]}  Rf1+ {[%clk 0:00:02]} 77. Ke4 {[%clk 0:00:17]}  Re1+ {[%clk 0:00:02]} 78. Kf4 {[%clk 0:00:12]}  Rf1+ {[%clk 0:00:03]} 79. Kg4 {[%clk 0:00:13]}  Rg1+ {[%clk 0:00:03]} 80. Kf3 {[%clk 0:00:11]}  Kxf5 {[%clk 0:00:02]} 81. g7 {[%clk 0:00:09]}  Kf6 {[%clk 0:00:02]} 82. Rh1 {[%clk 0:00:08]}  Rxg7 {[%clk 0:00:02]} 83. Rf1 {[%clk 0:00:06]}  Kf7 {[%clk 0:00:03]} 84. Ke2+ {[%clk 0:00:07]}  Kg8 {[%clk 0:00:03]} 85. Rf3 {[%clk 0:00:07]}  Rf7 {[%clk 0:00:04]} 86. Rxf7 {[%clk 0:00:07]}  Kxf7 {[%clk 0:00:05]} 1/2-1/2


[Site "https://www.chess.com"]

[Event "Titled Tuesday Blitz May 11 2021"]
[White "Yoo, Christopher Woojin"]
[Black "Pakleza, Zbigniew"]
[WhiteFideId "30909694"]
[BlackFideId "1119290"]
[WhiteElo "2009"]
[BlackElo "2526"]
[Result "0-1"]
[Round "10"]
[TimeControl "180+1"]
[Date "2021.05.11"]
[WhiteClock "0:00:01"]
[BlackClock "0:00:10"]

1. e4 {[%clk 0:02:54]}  d6 {[%clk 0:02:58]} 2. d4 {[%clk 0:02:51]}  Nf6 {[%clk 0:02:58]} 3. Nc3 {[%clk 0:02:51]}  c6 {[%clk 0:02:57]} 4. a4 {[%clk 0:02:48]}  Nbd7 {[%clk 0:02:57]} 5. f4 {[%clk 0:02:46]}  e5 {[%clk 0:02:57]} 6. Nf3 {[%clk 0:02:46]}  exd4 {[%clk 0:02:57]} 7. Qxd4 {[%clk 0:02:45]}  d5 {[%clk 0:02:47]} 8. exd5 {[%clk 0:02:41]}  Bc5 {[%clk 0:02:47]} 9. Qd3 {[%clk 0:02:38]}  O-O {[%clk 0:02:46]} 10. Be2 {[%clk 0:02:37]}  Re8 {[%clk 0:02:42]} 11. dxc6 {[%clk 0:02:33]}  bxc6 {[%clk 0:02:42]} 12. Ne5 {[%clk 0:02:20]}  Qc7 {[%clk 0:02:10]} 13. Qc4 {[%clk 0:01:47]}  Re7 {[%clk 0:01:33]} 14. b4 {[%clk 0:01:43]}  Bd6 {[%clk 0:00:44]} 15. Nxc6 {[%clk 0:01:39]}  Re6 {[%clk 0:00:29]} 16. Nb5 {[%clk 0:01:20]}  Rxe2+ {[%clk 0:00:29]} 17. Kxe2 {[%clk 0:01:15]}  Ba6 {[%clk 0:00:28]} 18. Rd1 {[%clk 0:00:54]}  Nb6 {[%clk 0:00:17]} 19. Rxd6 {[%clk 0:00:30]}  Bxb5 {[%clk 0:00:08]} 20. Qxb5 {[%clk 0:00:30]}  Qxd6 {[%clk 0:00:09]} 21. Ne5 {[%clk 0:00:22]}  Re8 {[%clk 0:00:10]} 22. Be3 {[%clk 0:00:19]}  Nbd5 {[%clk 0:00:10]} 23. Qc5 {[%clk 0:00:17]}  Qe6 {[%clk 0:00:10]} 24. Rd1 {[%clk 0:00:17]}  g5 {[%clk 0:00:10]} 25. fxg5 {[%clk 0:00:08]}  Ne4 {[%clk 0:00:10]} 26. Qd4 {[%clk 0:00:03]}  Nec3+ {[%clk 0:00:10]} 27. Ke1 {[%clk 0:00:01]}  Nxd1 {[%clk 0:00:11]} 28. Ng4 {[%clk 0:00:01]}  N1xe3 {[%clk 0:00:09]} 29. Nh6+ {[%clk 0:00:01]}  Kf8 {[%clk 0:00:10]} 0-1


[Site "https://www.chess.com"]

[Event "Titled Tuesday Blitz May 11 2021"]
[White "Yuan, Qingyu"]
[Black "Le, Tuan Minh"]
[WhiteFideId "8609772"]
[BlackFideId "12401153"]
[WhiteElo "2359"]
[BlackElo "2450"]
[Result "0-1"]
[Round "10"]
[TimeControl "180+1"]
[Date "2021.05.11"]
[WhiteClock "0:00:04"]
[BlackClock "0:00:10"]

1. e4 {[%clk 0:03:00]}  c5 {[%clk 0:02:59]} 2. Nf3 {[%clk 0:03:00]}  Nf6 {[%clk 0:02:59]} 3. e5 {[%clk 0:03:00]}  Nd5 {[%clk 0:02:58]} 4. Nc3 {[%clk 0:03:01]}  e6 {[%clk 0:02:59]} 5. Nxd5 {[%clk 0:02:51]}  exd5 {[%clk 0:03:00]} 6. d4 {[%clk 0:02:51]}  Nc6 {[%clk 0:03:00]} 7. dxc5 {[%clk 0:02:51]}  Bxc5 {[%clk 0:03:01]} 8. Qxd5 {[%clk 0:02:41]}  d6 {[%clk 0:03:01]} 9. exd6 {[%clk 0:02:34]}  Qb6 {[%clk 0:03:01]} 10. Bc4 {[%clk 0:02:07]}  Bxf2+ {[%clk 0:02:59]} 11. Kd1 {[%clk 0:02:07]}  O-O {[%clk 0:03:00]} 12. c3 {[%clk 0:02:02]}  Bc5 {[%clk 0:02:08]} 13. Ng5 {[%clk 0:01:51]}  Bg4+ {[%clk 0:01:57]} 14. Kc2 {[%clk 0:01:50]}  Bh5 {[%clk 0:01:57]} 15. b3 {[%clk 0:01:21]}  Rad8 {[%clk 0:01:19]} 16. d7 {[%clk 0:01:10]}  Ne7 {[%clk 0:00:43]} 17. Qd2 {[%clk 0:00:48]}  Nf5 {[%clk 0:00:34]} 18. Kb2 {[%clk 0:00:31]}  Ne3 {[%clk 0:00:25]} 19. Bd3 {[%clk 0:00:27]}  Bg6 {[%clk 0:00:25]} 20. Bxg6 {[%clk 0:00:16]}  Nc4+ {[%clk 0:00:23]} 21. Kc2 {[%clk 0:00:15]}  Nxd2 {[%clk 0:00:24]} 22. Bxh7+ {[%clk 0:00:15]}  Kh8 {[%clk 0:00:25]} 23. Bxd2 {[%clk 0:00:15]}  f6 {[%clk 0:00:22]} 24. h4 {[%clk 0:00:13]}  Rxd7 {[%clk 0:00:16]} 25. Bf5 {[%clk 0:00:10]}  Rxd2+ {[%clk 0:00:10]} 26. Kxd2 {[%clk 0:00:10]}  g6 {[%clk 0:00:10]} 27. Bxg6 {[%clk 0:00:06]}  fxg5 {[%clk 0:00:10]} 28. hxg5+ {[%clk 0:00:07]}  Kg8 {[%clk 0:00:10]} 29. Bd3 {[%clk 0:00:06]}  Rf2+ {[%clk 0:00:10]} 30. Kd1 {[%clk 0:00:05]}  Qd6 {[%clk 0:00:10]} 31. Rh3 {[%clk 0:00:06]}  Rf1+ {[%clk 0:00:09]} 32. Kc2 {[%clk 0:00:05]}  Rxa1 {[%clk 0:00:09]} 33. Bc4+ {[%clk 0:00:06]}  Kg7 {[%clk 0:00:10]} 34. Kb2 {[%clk 0:00:05]}  Qd1 {[%clk 0:00:10]} 35. Rh7+ {[%clk 0:00:04]}  Kxh7 {[%clk 0:00:10]} 0-1


[Site "https://www.chess.com"]

[Event "Titled Tuesday Blitz May 11 2021"]
[White "Zhigalko, Sergei"]
[Black "Gabrielian, Artur"]
[WhiteFideId "13502956"]
[BlackFideId "4131002"]
[WhiteElo "2662"]
[BlackElo "2539"]
[Result "1-0"]
[Round "10"]
[TimeControl "180+1"]
[Date "2021.05.11"]
[WhiteClock "0:00:03"]
[BlackClock "0:00:07"]

1. e4 {[%clk 0:03:00]}  e5 {[%clk 0:02:59]} 2. Nf3 {[%clk 0:03:01]}  Nc6 {[%clk 0:02:59]} 3. Bc4 {[%clk 0:03:01]}  Nf6 {[%clk 0:02:59]} 4. d3 {[%clk 0:03:00]}  Be7 {[%clk 0:02:59]} 5. O-O {[%clk 0:03:00]}  O-O {[%clk 0:02:59]} 6. Nbd2 {[%clk 0:03:01]}  d6 {[%clk 0:02:58]} 7. c3 {[%clk 0:03:00]}  Kh8 {[%clk 0:02:56]} 8. Re1 {[%clk 0:02:56]}  Ng8 {[%clk 0:02:56]} 9. d4 {[%clk 0:02:57]}  f5 {[%clk 0:02:37]} 10. dxe5 {[%clk 0:02:53]}  dxe5 {[%clk 0:02:23]} 11. h3 {[%clk 0:02:34]}  f4 {[%clk 0:02:15]} 12. Bd5 {[%clk 0:02:26]}  Bd6 {[%clk 0:02:14]} 13. Nc4 {[%clk 0:02:24]}  Qe7 {[%clk 0:02:11]} 14. b4 {[%clk 0:02:14]}  a6 {[%clk 0:02:08]} 15. a4 {[%clk 0:02:11]}  Nd8 {[%clk 0:01:38]} 16. Ba3 {[%clk 0:02:00]}  Nf6 {[%clk 0:01:28]} 17. Nxd6 {[%clk 0:01:52]}  cxd6 {[%clk 0:01:24]} 18. b5 {[%clk 0:01:52]}  Nxd5 {[%clk 0:01:06]} 19. Qxd5 {[%clk 0:01:36]}  Nf7 {[%clk 0:01:06]} 20. Red1 {[%clk 0:01:25]}  Rd8 {[%clk 0:01:06]} 21. Nxe5 {[%clk 0:01:04]}  Nxe5 {[%clk 0:00:42]} 22. Bxd6 {[%clk 0:01:04]}  Nf3+ {[%clk 0:00:42]} 23. gxf3 {[%clk 0:00:45]}  Qe8 {[%clk 0:00:42]} 24. Qg5 {[%clk 0:00:37]}  h6 {[%clk 0:00:29]} 25. Qxf4 {[%clk 0:00:32]}  Bxh3 {[%clk 0:00:29]} 26. Be5 {[%clk 0:00:26]}  Kh7 {[%clk 0:00:23]} 27. Qg3 {[%clk 0:00:25]}  Qe7 {[%clk 0:00:20]} 28. b6 {[%clk 0:00:13]}  Re8 {[%clk 0:00:17]} 29. Rd5 {[%clk 0:00:06]}  Be6 {[%clk 0:00:17]} 30. Rd6 {[%clk 0:00:07]}  Rad8 {[%clk 0:00:16]} 31. Rxe6 {[%clk 0:00:07]}  Qf7 {[%clk 0:00:15]} 32. Rxe8 {[%clk 0:00:07]}  Rxe8 {[%clk 0:00:15]} 33. Rd1 {[%clk 0:00:07]}  Re6 {[%clk 0:00:16]} 34. Qf4 {[%clk 0:00:05]}  Qg6+ {[%clk 0:00:15]} 35. Kf1 {[%clk 0:00:05]}  Qh5 {[%clk 0:00:15]} 36. Bd4 {[%clk 0:00:04]}  Rg6 {[%clk 0:00:11]} 37. Qf5 {[%clk 0:00:03]}  Qh2 {[%clk 0:00:07]} 38. Ke2 {[%clk 0:00:03]}  Qd6 {[%clk 0:00:07]} 39. Rg1 {[%clk 0:00:03]} 1-0


[Site "https://www.chess.com"]

[Event "Titled Tuesday Blitz May 11 2021"]
[White "dropstoneDP"]
[Black "Xiong, Jeffery"]
[BlackFideId "2047640"]
[WhiteElo "2916"]
[BlackElo "2724"]
[Result "0-1"]
[Round "10"]
[TimeControl "180+1"]
[Date "2021.05.11"]
[WhiteClock "0:00:14"]
[BlackClock "0:00:59"]

1. e4 {[%clk 0:03:00]}  g6 {[%clk 0:02:55]} 2. d4 {[%clk 0:03:00]}  Bg7 {[%clk 0:02:56]} 3. Nf3 {[%clk 0:03:01]}  a6 {[%clk 0:02:54]} 4. g3 {[%clk 0:03:00]}  d6 {[%clk 0:02:53]} 5. Bg2 {[%clk 0:03:01]}  Nf6 {[%clk 0:02:52]} 6. Qe2 {[%clk 0:02:59]}  O-O {[%clk 0:02:37]} 7. O-O {[%clk 0:02:59]}  Bg4 {[%clk 0:02:36]} 8. e5 {[%clk 0:02:47]}  Nfd7 {[%clk 0:02:32]} 9. h3 {[%clk 0:02:44]}  Bxf3 {[%clk 0:02:31]} 10. Bxf3 {[%clk 0:02:44]}  Nc6 {[%clk 0:02:27]} 11. Bxc6 {[%clk 0:02:40]}  bxc6 {[%clk 0:02:28]} 12. Bf4 {[%clk 0:02:36]}  c5 {[%clk 0:02:23]} 13. c3 {[%clk 0:02:35]}  cxd4 {[%clk 0:02:21]} 14. cxd4 {[%clk 0:02:36]}  c5 {[%clk 0:02:22]} 15. dxc5 {[%clk 0:02:28]}  Nxe5 {[%clk 0:02:16]} 16. cxd6 {[%clk 0:02:27]}  exd6 {[%clk 0:02:17]} 17. Nc3 {[%clk 0:02:24]}  Re8 {[%clk 0:02:17]} 18. Rad1 {[%clk 0:02:19]}  Qc8 {[%clk 0:02:12]} 19. Kh2 {[%clk 0:01:57]}  Rb8 {[%clk 0:02:11]} 20. Rd5 {[%clk 0:01:21]}  Nc4 {[%clk 0:02:07]} 21. Qf3 {[%clk 0:01:17]}  Rxb2 {[%clk 0:02:06]} 22. Ne4 {[%clk 0:01:15]}  Qe6 {[%clk 0:01:51]} 23. Nxd6 {[%clk 0:01:08]}  Nxd6 {[%clk 0:01:52]} 24. Rxd6 {[%clk 0:00:58]}  Qxa2 {[%clk 0:01:52]} 25. Bg5 {[%clk 0:00:52]}  a5 {[%clk 0:01:50]} 26. Bf6 {[%clk 0:00:52]}  Bf8 {[%clk 0:01:49]} 27. Rd4 {[%clk 0:00:48]}  Rc2 {[%clk 0:01:38]} 28. Rf4 {[%clk 0:00:44]}  Bd6 {[%clk 0:01:23]} 29. Rd4 {[%clk 0:00:30]}  Bc5 {[%clk 0:01:19]} 30. Rf4 {[%clk 0:00:30]}  Bxf2 {[%clk 0:01:13]} 31. Ra1 {[%clk 0:00:14]}  Bd4+ {[%clk 0:00:59]} 0-1


[Site "https://www.chess.com"]